bitfinex-derivatives/quotes_SOLF0:USTF0_20250117
["timestamp","ask_amount","ask_price","bid_price","bid_amount"]
[1737146530739,7.18526782,219.74,219.69,4.5497]
[1737146530938,7.18526782,219.74,219.63,1.906]
[1737146531236,7.18526782,219.74,219.66,4.5503]
[1737146531436,7.18526782,219.74,219.63,1.906]
[1737146531837,7.18526782,219.74,219.69,4.5496]
[1737146532038,7.18526782,219.74,219.63,1.906]
[1737146532238,7.18526782,219.74,219.67,4.5502]
[1737146532439,7.18526782,219.74,219.58,4.94894485]
[1737146532740,7.18526782,219.74,219.66,4.5503]
[1737146533136,4.5498,219.69,219.59,1.8534]
[1737146533337,4.5498,219.69,219.65,4.5506]
[1737146535239,4.55,219.68,219.65,4.5506]
[1737146535943,24.73141353,219.74,219.65,4.5506]
[1737146536245,24.73141353,219.74,219.59,1.8534]
[1737146536446,4.5498,219.69,219.64,4.5507]
[1737146536642,24.73141353,219.74,219.64,4.5507]
[1737146537036,4.5496,219.7,219.65,4.5506]
[1737146537645,24.73141353,219.74,219.59,1.8534]
[1737146537845,4.5498,219.69,219.64,4.5508]
[1737146538041,17.54614571,219.69,219.57,1.13775763]
[1737146538245,17.54614571,219.69,219.56,1.8969]
[1737146538447,4.5508,219.65,219.56,1.8969]
[1737146539053,17.54614571,219.65,219.53,6.08219348]
[1737146539248,17.54614571,219.65,219.53,4.9443906]
[1737146539446,4.5512,219.63,219.57,4.552]
[1737146539844,4.5512,219.63,219.52,1.8693]
[1737146540047,17.54614571,219.65,219.59,4.5518]
[1737146541051,17.54614571,219.65,219.52,1.8693]
[1737146541839,3.6662,219.64,219.48,1.13780288]
[1737146542040,3.6662,219.64,219.47,6.77328183]
[1737146542246,3.6662,219.64,219.48,1.13780288]
[1737146542446,3.6662,219.64,219.49,1.13780288]
[1737146542647,3.6662,219.64,219.5,1.13780288]
[1737146542950,4.5511,219.63,219.54,4.5527]
[1737146543147,3.6662,219.64,219.49,6.08595516]
[1737146543346,3.6662,219.64,219.5,1.13817333]
[1737146543650,3.6662,219.64,219.51,1.13817333]
[1737146543851,3.6662,219.64,219.49,1.13817333]
[1737146544053,3.6662,219.64,219.5,1.13817333]
[1737146544252,3.6662,219.64,219.49,1.13817333]
[1737146544451,4.5521,219.58,219.52,4.5531]
[1737146545053,4.5521,219.58,219.51,4.5535]
[1737146545347,1.9053,219.64,219.52,1.13819338]
[1737146545555,1.8709,219.68,219.57,4.5521]
[1737146545744,1.8709,219.68,219.52,4.94778183]
[1737146546047,1.8709,219.68,219.53,1.13812203]
[1737146546244,4.5506,219.66,219.6,4.5516]
[1737146546446,1.8709,219.68,219.6,4.5516]
[1737146548278,4.5507,219.65,219.55,1.13799706]
[1737146548462,4.5507,219.65,219.59,4.5518]
[1737146548853,4.5512,219.63,219.57,4.552]
[1737146549052,4.5512,219.63,219.51,17.54614571]
[1737146549254,4.5512,219.63,219.53,4.9653688]
[1737146549450,4.5512,219.63,219.58,4.552]
[1737146550356,4.5508,219.64,219.56,1.13801883]
[1737146550648,4.5508,219.64,219.51,22.78614571]
[1737146550649,4.5508,219.64,219.52,4.96860706]
[1737146550846,4.5508,219.64,219.53,1.13801531]
[1737146551045,184.70556399,220.08,219.61,129.0]
[1737146551249,184.70556399,220.08,220.0,17.54614571]
[1737146551652,184.70556399,220.08,219.95,17.54614571]
[1737146552253,4.5406,220.14,220.0,4.5433]
[1737146552454,17.54614571,220.13,219.91,37.35614571]
[1737146552655,17.54614571,220.13,219.92,1.13599668]
[1737146552852,17.54614571,220.09,219.96,4.96860706]
[1737146553049,17.54614571,219.97,219.96,2.10060706]
[1737146553248,7.9146,220.08,219.83,17.54614571]
[1737146553249,17.54614571,220.05,219.83,17.54614571]
[1737146553454,85.2,220.06,219.87,17.54614571]
[1737146553650,85.2,220.06,219.88,7.25642944]
[1737146553849,17.54614571,220.09,219.91,17.54614571]
[1737146554056,17.54614571,220.09,219.96,4.5441]
[1737146554259,17.54614571,220.09,219.97,1.1360091]
[1737146554559,4.5418,220.08,219.92,6.383]
[1737146554761,4.5418,220.08,219.93,1.13603608]
[1737146555061,17.54614571,220.09,219.94,1.13603608]
[1737146555358,4.5423,220.05,219.92,1.8381]
[1737146555553,4.5423,220.05,219.93,1.13615169]
[1737146555754,4.5423,220.05,219.94,1.13615169]
[1737146555960,4.5423,220.05,219.92,1.8381]
[1737146556156,4.5423,220.05,219.93,1.1361814]
[1737146556361,4.5423,220.05,219.92,1.8381]
[1737146556362,17.54614571,220.09,219.92,1.8381]
[1737146556656,17.54614571,220.04,219.92,1.8381]
[1737146557055,4.5429,220.03,219.93,1.13623067]
[1737146557255,32.03961041,220.14,219.92,1.8381]
[1737146557256,17.54614571,220.08,219.94,1.13615139]
[1737146557560,17.54614571,220.08,219.95,1.13615139]
[1737146557761,4.542,220.07,219.96,1.13615139]
[1737146558060,4.542,220.07,219.92,6.383]
[1737146558261,17.54614571,220.08,219.93,1.13606409]
[1737146558464,17.54614571,220.08,219.94,1.13606409]
[1737146558660,17.54614571,220.08,219.95,1.13606409]
[1737146558961,4.5424,220.05,219.92,6.383]
[1737146559163,4.5424,220.05,219.93,1.13610919]
[1737146559463,17.54614571,220.08,219.94,1.13610919]
[1737146559757,4.5426,220.04,219.92,6.383]
[1737146559965,17.54614571,220.08,219.93,1.13629419]
[1737146560262,17.54614571,220.05,219.92,1.8381]
[1737146560461,17.54614571,220.01,219.84,6.04]
[1737146560661,4.544,219.97,219.87,4.5459]
[1737146561360,4.544,219.97,219.88,1.13640793]
[1737146561555,4.544,219.97,219.87,4.5459]
[1737146561765,4.544,219.97,219.88,1.13645961]
[1737146561964,4.544,219.97,219.87,4.5459]
[1737146562163,4.544,219.97,219.88,1.13643036]
[1737146562360,4.544,219.97,219.85,1.7826]
[1737146562559,4.544,219.97,219.88,4.5458]
[1737146563564,4.5442,219.96,219.88,4.5458]
[1737146563760,17.54614571,220.01,219.88,4.5458]
[1737146564065,4.5444,219.95,219.88,4.5458]
[1737146564256,17.54614571,220.01,219.85,1.7826]
[1737146564257,17.54614571,220.01,219.86,4.546]
[1737146564463,17.54614571,220.01,219.87,1.13645611]
[1737146564663,17.54614571,220.01,219.86,4.546]
[1737146564863,17.54614571,220.01,219.87,1.13646354]
[1737146565165,17.54614571,220.01,219.87,4.546]
[1737146565368,4.5447,219.94,219.87,4.546]
[1737146565757,17.54614571,220.01,219.85,6.67459296]
[1737146565964,4.5451,219.92,219.86,1.13644405]
[1737146566159,17.54614571,220.01,219.87,1.13644405]
[1737146566466,17.54614571,219.97,219.85,6.67459296]
[1737146566768,17.54614571,219.97,219.81,4.89199296]
[1737146566970,4.5459,219.88,219.83,4.5467]
[1737146567167,17.54614571,219.97,219.83,4.5467]
[1737146567465,17.54614571,219.93,219.8,9.43929296]
[1737146567665,17.54614571,219.93,219.8,4.5473]
[1737146567969,17.54614571,219.93,219.79,5.4212]
[1737146568169,17.54614571,219.97,219.79,5.4212]
[1737146568371,17.54614571,219.97,219.8,1.136847]
[1737146568570,17.54614571,219.97,219.81,1.136847]
[1737146568772,17.54614571,219.97,219.79,5.4212]
[1737146568970,17.54614571,219.97,219.8,1.13672218]
[1737146569266,17.54614571,219.93,219.79,10.31717679]
[1737146569865,4.5462,219.87,219.81,4.5472]
[1737146570069,17.54614571,219.89,219.79,1.8553]
[1737146570264,17.54614571,219.89,219.75,11.97288724]
[1737146570465,4.5469,219.84,219.77,4.5481]
[1737146570665,4.5469,219.84,219.75,7.07691045]
[1737146570862,4.5469,219.84,219.75,5.94]
[1737146571073,4.5469,219.83,219.78,4.5479]
[1737146571475,17.54614571,219.89,219.75,5.94]
[1737146571769,17.54614571,219.89,219.77,4.5479]
[1737146572275,4.547,219.83,219.78,4.5478]
[1737146572571,17.54614571,219.92,219.75,7.07690398]
[1737146573168,17.54614571,219.92,219.8,4.5475]
[1737146573368,17.54614571,219.92,219.75,7.07690398]
[1737146574970,4.5464,219.86,219.8,4.5475]
[1737146575574,17.54614571,219.92,219.69,5.4482]
[1737146575575,13.5981,220.52,219.88,13.71]
[1737146575871,23.00344571,220.39,220.18,17.54614571]
[1737146576075,4.5376,220.28,220.15,4.5402]
[1737146576270,85.12,220.38,220.14,17.54614571]
[1737146576477,4.5378,220.27,220.13,4.5406]
[1737146576676,17.54614571,220.35,220.13,4.5406]
[1737146577475,4.5375,220.29,220.13,4.5406]
[1737146577676,17.54614571,220.35,220.15,4.5401]
[1737146578176,17.54614571,220.31,220.01,13.71]
[1737146578372,17.54614571,220.23,220.03,17.54614571]
[1737146578573,5.2594,220.22,220.03,17.54614571]
[1737146579478,4.5395,220.19,220.06,4.542]
[1737146580179,4.5397,220.18,220.06,4.542]
[1737146580678,4.5403,220.15,220.04,4.5425]
[1737146580877,5.2594,220.22,220.04,4.5425]
[1737146581480,17.54614571,220.19,219.96,1.8502]
[1737146581774,85.06,220.18,219.98,17.54614571]
[1737146582081,17.54614571,220.17,219.98,17.54614571]
[1737146582273,4.5416,220.09,220.0,4.5432]
[1737146582576,17.54614571,220.17,219.98,17.54614571]
[1737146582778,4.542,220.07,219.98,17.54614571]
[1737146583174,17.54614571,220.17,219.94,17.54614571]
[1737146583376,4.5424,220.05,219.94,17.54614571]
[1737146584173,17.54614571,220.13,219.94,17.54614571]
[1737146584377,17.54614571,220.13,219.9,6.58]
[1737146584585,17.54614571,220.13,219.92,17.54614571]
[1737146585278,17.54614571,220.13,219.96,17.54614571]
[1737146585674,0.83502974,220.12,219.92,17.54614571]
[1737146585976,0.83502974,220.12,219.94,4.5446]
[1737146586379,0.83506321,220.11,219.94,4.5446]
[1737146586570,17.54614571,220.13,219.92,17.54614571]
[1737146586776,4.5427,220.04,219.96,17.54614571]
[1737146586978,1.8455,220.1,219.96,17.54614571]
[1737146587177,3.6326,220.09,219.96,17.54614571]
[1737146587378,3.6326,220.09,220.0,17.54614571]
[1737146587980,4.5419,220.07,220.0,17.54614571]
[1737146588178,3.6326,220.09,220.0,17.54614571]
[1737146588481,4.5421,220.07,220.0,17.54614571]
[1737146588682,3.6326,220.09,220.0,17.54614571]
[1737146589482,4.5422,220.06,220.0,17.54614571]
[1737146589784,3.6326,220.09,219.99,4.5435]
[1737146589984,3.6326,220.09,219.96,17.54614571]
[1737146590581,3.6326,220.09,219.98,4.5438]
[1737146590980,3.6326,220.09,219.96,17.54614571]
[1737146591180,4.5431,220.02,219.96,22.09024571]
[1737146591382,3.6326,220.09,219.92,17.54614571]
[1737146591781,4.5425,220.04,219.93,4.5446]
[1737146592082,3.6326,220.09,219.93,4.5446]
[1737146592480,4.5436,219.99,219.93,4.5446]
[1737146594088,21.17874571,220.09,219.93,4.5446]
[1737146594389,0.83519008,220.08,219.92,17.54614571]
[1737146594588,0.83519008,220.08,219.94,4.5446]
[1737146594887,4.5435,220.0,219.94,4.5446]
[1737146595082,4.5435,220.0,219.95,1.13630301]
[1737146595386,4.543,220.02,219.96,5.68030782]
[1737146595688,3.6326,220.09,219.97,1.13610782]
[1737146595883,3.6326,220.09,219.98,1.13610782]
[1737146596085,3.6326,220.09,219.99,1.13603775]
[1737146596288,1.8321,220.09,220.06,4.542]
[1737146596590,1.8455,220.1,220.07,1.13578878]
[1737146596782,1.8358,220.16,220.08,1.13578878]
[1737146596980,4.5407,220.13,220.04,17.54614571]
[1737146597287,1.8358,220.16,220.05,1.13568418]
[1737146597487,1.8358,220.16,220.06,1.13568418]
[1737146597783,1.8358,220.16,220.05,4.91972722]
[1737146597994,4.5421,220.06,220.01,4.5431]
[1737146598291,1.8358,220.16,220.02,1.13583767]
[1737146598482,0.83484733,220.15,220.03,1.13583767]
[1737146598686,0.83484733,220.15,219.99,6.4]
[1737146598884,0.83484733,220.15,220.0,1.13591222]
[1737146599087,0.83484733,220.15,220.01,1.13591222]
[1737146599282,0.83484733,220.15,220.02,1.13591222]
[1737146599486,0.83484733,220.15,220.03,1.13591222]
[1737146599691,0.8348974,220.14,220.01,4.5431]
[1737146599891,1.8358,220.16,220.02,1.13591146]
[1737146600087,4.5421,220.07,220.01,4.5431]
[1737146600293,4.5421,220.07,220.02,1.13590842]
[1737146600488,4.5421,220.07,220.01,4.5431]
[1737146600792,4.5421,220.07,220.02,1.13591631]
[1737146601108,4.5421,220.07,220.01,4.5431]
[1737146601291,4.5421,220.07,220.02,1.13590974]
[1737146601487,4.5421,220.07,220.01,4.5431]
[1737146601692,4.5421,220.07,220.02,1.13590974]
[1737146601901,4.5421,220.07,220.01,4.5431]
[1737146602192,1.8358,220.16,220.01,4.5431]
[1737146602392,4.5421,220.06,220.01,4.5431]
[1737146602895,1.8358,220.16,219.96,17.54614571]
[1737146603098,1.8358,220.16,219.97,6.05933682]
[1737146603099,0.83491255,220.15,219.97,6.05933682]
[1737146603395,17.54614571,220.14,219.98,1.1359203]
[1737146603691,17.54614571,220.14,219.99,1.1359203]
[1737146603895,17.54614571,220.14,220.0,1.1359203]
[1737146604096,4.542,220.07,219.96,4.5441]
[1737146604391,1.8633,220.06,219.97,1.13602339]
[1737146604593,1.8633,220.06,219.98,1.13602339]
[1737146604795,1.8633,220.06,219.92,17.54614571]
[1737146604995,1.8633,220.06,219.93,1.13602609]
[1737146605193,1.8633,220.06,219.94,1.13602609]
[1737146605396,1.8633,220.06,219.96,17.54614571]
[1737146605597,4.5426,220.04,219.99,4.5434]
[1737146605894,1.8633,220.06,219.96,17.54614571]
[1737146606091,1.8633,220.06,219.97,1.13594014]
[1737146606290,17.54614571,220.14,219.98,1.13594014]
[1737146606495,1.8633,220.13,219.99,1.13594014]
[1737146606697,4.5425,220.02,219.97,4.5435]
[1737146606897,1.8633,220.13,219.98,1.13592821]
[1737146607093,1.8633,220.13,219.97,4.92281532]
[1737146607397,17.54614571,220.1,219.97,4.92281532]
[1737146607699,17.54614571,220.1,219.93,17.54614571]
[1737146607893,4.5432,219.99,219.94,4.5441]
[1737146608295,17.54614571,220.1,219.93,17.54614571]
[1737146608495,1.8633,220.13,219.93,17.54614571]
[1737146608793,1.8633,220.13,219.97,17.54614571]
[1737146608998,0.83497965,220.12,219.97,17.54614571]
[1737146609195,0.83497965,220.12,219.96,4.5436]
[1737146609698,4.5427,220.02,219.96,4.5436]
[1737146610592,4.5427,220.02,219.97,4.5434]
[1737146610993,4.5412,220.09,219.97,17.54614571]
[1737146611196,1.8633,220.13,219.97,17.54614571]
[1737146611499,1.8633,220.13,219.88,6.26]
[1737146611500,1.8633,220.13,219.93,17.54614571]
[1737146611701,4.5424,220.03,219.97,4.5433]
[1737146612399,4.5424,220.03,219.98,4.5432]
[1737146612894,1.8633,220.13,219.93,17.54614571]
[1737146613099,1.8633,220.13,220.02,4.5424]
[1737146613301,1.8633,220.13,219.95,1.13602854]
[1737146613495,1.8633,220.13,219.96,1.13602854]
[1737146613691,4.5415,220.07,220.01,4.5425]
[1737146614095,4.5415,220.07,219.96,1.13602854]
[1737146614296,4.5415,220.07,219.97,1.13602854]
[1737146614497,4.5415,220.07,219.96,1.13602854]
[1737146614693,4.5415,220.07,219.96,1.13584023]
[1737146614897,4.5415,220.07,219.95,4.92020444]
[1737146615098,1.8633,220.13,219.96,1.13583545]
[1737146615395,1.8633,220.13,219.95,4.92020444]
[1737146615591,1.8633,220.13,220.0,4.5429]
[1737146615899,4.5418,220.06,220.0,4.5429]
[1737146616604,1.8633,220.13,219.97,17.54614571]
[1737146616796,1.8633,220.13,219.98,1.13581515]
[1737146616995,4.5421,220.05,220.0,4.5427]
[1737146617300,17.54614571,220.1,219.94,1.8032]
[1737146617503,4.5427,220.02,219.96,4.5437]
[1737146617793,17.54614571,220.1,219.96,4.5437]
[1737146618003,17.54614571,220.1,219.93,17.54614571]
[1737146618197,4.5428,220.01,219.95,4.5439]
[1737146619204,17.54614571,220.1,219.96,1.13604988]
[1737146619506,17.54614571,220.1,219.97,1.13601363]
[1737146619705,17.54614571,220.1,219.93,17.54614571]
[1737146620006,17.54614571,220.1,219.94,1.13600139]
[1737146620203,17.54614571,220.1,219.95,1.13600139]
[1737146620406,1.8633,220.13,219.96,1.13600139]
[1737146620607,4.5417,220.06,219.97,1.13600139]
[1737146620809,4.5417,220.06,219.98,1.13600139]
[1737146621109,4.5413,220.08,219.99,1.13600139]
[1737146621309,1.8633,220.13,220.0,1.13600139]
[1737146621511,1.8633,220.13,219.98,4.94359291]
[1737146621700,4.5425,220.02,220.01,4.94359291]
[1737146621902,17.54614571,220.1,219.9,1.7671]
[1737146622207,4.5432,219.99,219.91,10.63574851]
[1737146622405,4.5432,219.99,219.92,1.13609144]
[1737146622600,3.5445,220.05,219.93,1.13609144]
[1737146622804,4.5431,220.0,219.94,1.13609144]
[1737146623008,4.5431,220.0,219.95,1.13609144]
[1737146623208,3.5445,220.05,219.95,4.95495707]
[1737146623507,4.5423,220.03,219.97,4.5435]
[1737146623709,4.5423,220.03,219.98,1.1361394]
[1737146624007,4.5423,220.03,219.99,1.1361394]
[1737146624207,4.5423,220.03,220.0,1.1361394]
[1737146624408,4.5423,220.03,220.01,1.1361394]
[1737146624602,4.5423,220.03,219.97,4.5435]
[1737146624799,4.5423,220.03,219.98,1.13600085]
[1737146624999,4.5423,220.03,219.99,1.13600085]
[1737146625200,4.5423,220.03,220.0,1.13600085]
[1737146625404,8.0866,220.05,220.01,1.13600085]
[1737146625605,3.5445,220.05,219.98,4.5433]
[1737146625812,3.5445,220.05,219.99,1.13599281]
[1737146626014,3.5445,220.05,220.0,1.13599281]
[1737146626211,3.5445,220.05,220.01,1.13599281]
[1737146626212,4.5421,220.04,220.01,1.13599281]
[1737146626409,3.5445,220.05,219.97,4.5435]
[1737146626611,3.5445,220.05,219.98,1.13598063]
[1737146626814,3.5445,220.05,219.99,1.13598063]
[1737146627014,3.5445,220.05,220.0,1.13598063]
[1737146627313,3.5445,220.05,219.94,4.5441]
[1737146627508,3.5445,220.05,219.95,1.13610135]
[1737146627709,3.5445,220.05,219.96,1.13610135]
[1737146627915,4.5433,219.98,219.97,1.13610135]
[1737146630407,4.5432,219.99,219.9,1.7671]
[1737146630612,10.90802652,220.02,219.91,1.13625973]
[1737146630817,10.90802652,220.02,219.92,1.13625973]
[1737146631017,10.90802652,220.02,219.93,1.13625973]
[1737146631018,4.544,219.95,219.93,1.13625973]
[1737146631216,4.544,219.95,219.87,10.90802652]
[1737146631217,4.544,219.95,219.94,1.13625973]
[1737146632613,10.90802652,219.96,219.85,4.546]
[1737146632808,1.7343,220.01,219.87,10.90802652]
[1737146633013,10.90802652,220.02,219.83,6.0]
[1737146633014,14.45252652,220.05,219.9,10.90802652]
[1737146633217,4.5433,219.99,219.93,4.5442]
[1737146633412,14.45252652,220.05,219.94,1.13636857]
[1737146633711,4.5437,219.97,219.95,1.13633627]
[1737146633919,4.5437,219.97,219.91,4.5447]
[1737146634216,4.5434,219.98,219.92,1.13633556]
[1737146634411,4.5434,219.98,219.93,1.13633556]
[1737146634609,14.45252652,220.05,219.94,1.13633556]
[1737146634808,4.5435,219.97,219.95,1.13633187]
[1737146635021,4.5435,219.97,219.93,4.5443]
[1737146635216,4.5435,219.97,219.94,1.13633187]
[1737146635415,4.5435,219.97,219.95,1.13633187]
[1737146635717,4.5435,219.97,219.93,4.5443]
[1737146636014,4.5435,219.97,219.94,1.13634244]
[1737146636221,4.5435,219.97,219.95,1.13634244]
[1737146636514,4.5435,219.97,219.93,4.5443]
[1737146636515,4.5432,219.99,219.96,1.13634244]
[1737146636821,4.5432,219.99,219.97,1.13634244]
[1737146637023,4.5425,220.02,219.94,4.5441]
[1737146637317,14.45252652,220.05,219.95,1.13616606]
[1737146637517,14.45252652,220.05,219.96,1.13616606]
[1737146637719,4.5433,219.99,219.97,1.13616606]
[1737146637911,4.5433,219.99,219.94,4.5441]
[1737146638116,4.5433,219.99,219.95,1.13614112]
[1737146638311,4.5435,219.97,219.96,1.13614112]
[1737146638717,4.5435,219.97,219.96,1.13624373]
[1737146639433,4.5432,219.99,219.96,1.13624373]
[1737146639714,14.45252652,220.05,219.97,1.13619823]
[1737146639911,14.45252652,220.05,219.98,1.13614508]
[1737146640111,14.45252652,220.05,219.9,10.90802652]
[1737146640312,14.45252652,220.05,219.91,2.97684818]
[1737146640515,14.45252652,220.05,219.92,1.13614818]
[1737146640713,14.45252652,220.05,219.95,4.5438]
[1737146640915,14.45252652,220.05,219.96,1.13614818]
[1737146641112,14.45252652,220.05,219.97,1.13614818]
[1737146641313,1.7343,220.08,219.98,1.13614818]
[1737146641517,85.06,220.1,219.99,1.13614818]
[1737146641715,85.06,220.1,220.0,1.13614818]
[1737146641929,4.5418,220.06,220.01,1.13614818]
[1737146642119,10.90802652,220.08,220.02,1.13614818]
[1737146642320,10.90802652,220.08,219.99,4.5431]
[1737146642515,10.90802652,220.08,220.0,1.13588241]
[1737146642721,4.5417,220.06,220.01,1.13588241]
[1737146642921,4.5417,220.06,220.02,1.13588241]
[1737146643225,4.5417,220.06,220.03,1.13588241]
[1737146643424,4.5417,220.06,219.99,4.5431]
[1737146643624,4.5417,220.06,220.0,1.13585629]
[1737146643927,4.5419,220.05,220.01,1.13585629]
[1737146644122,4.5419,220.05,220.02,1.13585629]
[1737146644323,4.5419,220.05,220.03,1.13586806]
[1737146644518,10.90802652,220.08,219.93,10.90802652]
[1737146644719,10.90802652,220.08,219.94,1.13584966]
[1737146644924,10.90802652,220.05,219.95,1.13584966]
[1737146645126,10.90802652,220.05,219.96,1.13584966]
[1737146645325,10.90802652,220.05,219.97,1.13584966]
[1737146645527,10.90802652,220.05,219.98,1.13584966]
[1737146645726,10.90802652,220.05,219.99,1.13584966]
[1737146645919,10.90802652,220.05,220.0,1.13584966]
[1737146646120,10.90802652,220.05,219.92,3.5385]
[1737146646327,10.90802652,220.05,219.93,1.13601855]
[1737146646527,10.90802652,220.05,219.94,1.13601855]
[1737146646528,4.5431,220.0,219.94,1.13601855]
[1737146646727,4.5431,220.0,219.95,1.13601855]
[1737146646934,10.90802652,220.05,219.96,1.13601855]
[1737146647127,10.90802652,220.05,219.97,1.13601855]
[1737146647322,10.90802652,220.05,219.98,1.13601855]
[1737146647529,10.90802652,220.02,219.87,16.74802652]
[1737146647830,10.90802652,219.99,219.88,1.13633072]
[1737146648030,10.90802652,219.99,219.89,5.68143072]
[1737146648230,10.90802652,219.99,219.9,1.13633072]
[1737146648428,4.5442,219.94,219.91,1.13633072]
[1737146648625,4.5442,219.94,219.92,1.13633072]
[1737146648830,4.5442,219.94,219.93,1.13633072]
[1737146649231,4.5437,219.97,219.93,1.13633072]
[1737146649532,10.90802652,220.02,219.94,1.13633072]
[1737146649729,4.5429,220.0,219.95,1.13631946]
[1737146649929,10.90802652,220.02,219.9,4.5448]
[1737146650131,10.90802652,220.02,219.91,1.13631949]
[1737146650326,10.90802652,220.02,219.92,1.13631949]
[1737146650527,10.90802652,220.02,219.87,10.90802652]
[1737146650528,4.5441,219.94,219.93,1.13631949]
[1737146651131,4.544,219.95,219.93,1.13631949]
[1737146651428,12.82012652,220.03,219.94,1.13631949]
[1737146651622,12.82012652,220.03,219.95,1.13631949]
[1737146651934,12.82012652,220.03,219.87,10.90802652]
[1737146652225,12.82012652,220.03,219.88,1.13631745]
[1737146652428,12.82012652,220.03,219.89,1.13631745]
[1737146652631,4.5439,219.96,219.91,4.5447]
[1737146652824,12.82012652,220.03,219.92,1.13631745]
[1737146653029,12.82012652,220.03,219.87,10.90802652]
[1737146653030,4.5441,219.94,219.93,1.13631745]
[1737146653531,4.5441,219.94,219.93,1.13638372]
[1737146654633,10.90802652,220.0,219.85,9.3439]
[1737146654833,4.5445,219.93,219.88,4.5453]
[1737146655133,4.5445,219.93,219.89,1.13642283]
[1737146655335,4.5445,219.93,219.9,1.13642283]
[1737146655525,4.5445,219.93,219.88,4.5453]
[1737146655526,4.5445,219.93,219.91,1.13642283]
[1737146655731,4.5445,219.93,219.88,4.5453]
[1737146656033,4.5445,219.93,219.89,5.68155919]
[1737146656229,4.5445,219.93,219.9,1.13645919]
[1737146656436,4.5445,219.93,219.91,1.13645919]
[1737146656734,10.90802652,219.97,219.87,4.5455]
[1737146656934,4.5447,219.92,219.88,1.13646078]
[1737146657134,10.90802652,219.97,219.87,4.5455]
[1737146657135,10.90802652,219.97,219.89,1.13646078]
[1737146657333,10.90802652,219.97,219.87,4.5455]
[1737146657535,10.90802652,219.97,219.88,1.13650676]
[1737146657730,10.90802652,219.97,219.89,1.13650676]
[1737146657935,4.5449,219.91,219.9,1.13650676]
[1737146658430,4.545,219.9,219.85,4.5458]
[1737146658737,1.9121,220.03,219.86,1.13654755]
[1737146658932,4.5441,219.94,219.89,4.5451]
[1737146659134,10.90802652,220.0,219.9,1.13654755]
[1737146659435,10.90802652,220.0,219.91,1.13654755]
[1737146659730,10.90802652,219.97,219.84,10.90802652]
[1737146659930,10.90802652,219.97,219.85,1.13654982]
[1737146660239,4.5445,219.93,219.88,4.5452]
[1737146660426,4.5445,219.93,219.89,1.13654982]
[1737146660730,4.5446,219.92,219.87,4.5455]
[1737146660938,4.5446,219.92,219.88,1.136524]
[1737146661130,4.5446,219.92,219.89,1.136524]
[1737146661330,10.90802652,219.97,219.9,1.13651912]
[1737146661530,10.90802652,219.97,219.91,1.13645822]
[1737146661731,10.90802652,219.97,219.84,10.90802652]
[1737146662036,10.90802652,219.97,219.85,1.13646475]
[1737146662238,4.5442,219.94,219.88,4.5452]
[1737146662536,10.90802652,220.0,219.89,1.13646475]
[1737146662733,10.90802652,220.0,219.9,1.13646475]
[1737146662933,10.90802652,220.0,219.91,1.13646475]
[1737146663132,10.90802652,219.97,219.84,10.90802652]
[1737146663337,10.90802652,219.97,219.85,1.13645953]
[1737146663536,10.90802652,219.97,219.86,1.13645953]
[1737146663736,10.90802652,219.97,219.87,1.13645953]
[1737146663939,10.90802652,219.97,219.88,1.13645953]
[1737146664133,4.5442,219.94,219.89,5.68145953]
[1737146664329,4.5442,219.94,219.9,1.13645953]
[1737146664535,4.5442,219.94,219.91,1.13645953]
[1737146664836,4.5442,219.94,219.92,1.13643555]
[1737146665036,10.90802652,220.0,219.93,1.13637441]
[1737146665236,12.82012652,220.03,219.94,1.13637441]
[1737146665436,4.5427,220.01,219.96,4.5437]
[1737146666138,4.5427,220.01,219.97,1.13617825]
[1737146666434,4.5427,220.01,219.96,4.5437]
[1737146666640,4.5429,220.0,219.97,1.13615692]
[1737146666936,4.5429,220.0,219.9,10.90802652]
[1737146667241,4.5429,220.0,219.94,4.5439]
[1737146667438,4.5429,220.0,219.95,1.13616283]
[1737146667640,4.5429,220.0,219.96,1.13616283]
[1737146667840,4.5429,220.0,219.97,1.13616283]
[1737146668035,1.9121,220.03,219.93,10.90802652]
[1737146668340,6.4546,220.03,219.94,1.13614833]
[1737146668538,3.6768,220.04,219.95,1.13614833]
[1737146668742,4.5419,220.05,219.96,12.04417485]